bitfinex/quotes_ETHUSD_20250702
["timestamp","ask_amount","ask_price","bid_price","bid_amount"]
[1751431306440,0.01,2440.2,2439.7,0.55]
[1751431306627,6.8961879,2440.0,2439.7,0.55]
[1751431306804,7.58680669,2440.0,2439.7,0.55]
[1751431309131,7.58580669,2440.0,2439.7,0.55]
[1751431309434,0.91580669,2440.0,2439.7,0.55]
[1751431309630,6.8951879,2440.0,2439.7,0.55]
[1751431309820,7.7239879,2440.0,2439.5,0.55]
[1751431310434,7.7239879,2440.0,2439.5,10.55]
[1751431315036,0.2048,2439.8,2439.5,10.55]
[1751431315404,0.2048,2439.6,2439.5,0.55]
[1751431324722,0.2048,2439.6,2439.3,10.0]
[1751431324916,0.2048,2439.6,2439.3,11.80577365]
[1751431326560,0.2048,2439.6,2439.5,0.55]
[1751431327354,0.2048,2439.9,2439.5,0.7548]
[1751431327559,0.2048,2439.9,2439.7,6.48033647]
[1751431328458,0.2048,2439.9,2439.6,0.55]
[1751431328877,0.2048,2439.9,2439.5,0.7548]
[1751431329063,0.2048,2439.9,2439.5,1.74201101]
[1751431330259,0.2048,2439.9,2439.5,1.76201101]
[1751431330437,0.2048,2439.9,2439.5,8.24234748]
[1751431331665,0.2351879,2440.0,2439.5,1.55721101]
[1751431331838,0.2048,2439.7,2439.5,0.57]
[1751431332536,0.2048,2439.7,2439.5,0.02]
[1751431335275,0.8228,2439.6,2439.5,0.02]
[1751431339835,8.693,2439.7,2439.5,0.02]
[1751431340967,0.788,2439.8,2439.5,0.02]
[1751431341265,9.481,2439.8,2439.5,0.02]
[1751431341565,10.45261879,2439.8,2439.5,0.02]
[1751431342966,0.01,2439.7,2439.5,0.02]
[1751431346453,0.7702,2439.6,2439.5,0.02]
[1751431349265,9.4622,2439.6,2439.5,0.02]
[1751431354877,9.4722,2439.6,2439.5,0.02]
[1751431355061,10.42042,2439.6,2439.5,0.02]
[1751431356662,10.41342,2439.6,2439.5,0.02]
[1751431359081,1.72842,2439.6,2439.5,0.02]
[1751431359389,8.694,2439.6,2439.5,0.02]
[1751431361085,0.01,2439.6,2439.5,0.02]
[1751431361585,6.664,2439.6,2439.5,1.3606]
[1751431362491,0.2148,2439.6,2439.5,1.3606]
[1751431362724,6.666,2439.6,2439.5,2.14469365]
[1751431363610,0.01,2439.6,2439.5,2.14469365]
[1751431366615,0.01,2439.6,2439.5,1.35409365]
[1751431366908,0.01,2439.6,2439.5,0.57]
[1751431370576,0.01,2439.6,2439.5,0.02]
[1751431374599,8.692,2439.6,2439.5,0.02]
[1751431377899,0.01,2439.6,2439.5,0.02]
[1751431378094,6.659,2439.6,2439.5,0.7988]
[1751431381527,6.659,2439.6,2439.5,1.3488]
[1751431381738,6.8638,2439.6,2439.5,1.3488]
[1751431381939,0.2148,2439.6,2439.5,1.3488]
[1751431386236,0.2148,2439.6,2439.5,0.57]
[1751431388249,0.01,2439.6,2439.5,0.57]
[1751431388421,0.01,2439.6,2439.5,1.37663365]
[1751431391349,0.01,2439.6,2439.5,17.85697012]
[1751431391842,0.01,2439.6,2439.5,18.65787012]
[1751431395023,0.01,2439.6,2439.5,18.86267012]
[1751431397131,0.2351879,2440.0,2439.6,1.3739]
[1751431397441,0.2351879,2440.0,2439.9,11.3739]
[1751431397752,0.2351879,2440.0,2439.9,10.55]
[1751431398460,0.2351879,2440.0,2439.9,11.3229]
[1751431399168,0.2351879,2440.0,2439.9,11.5277]
[1751431404504,42.025,2442.4,2440.3,0.55]
[1751431404655,6.715,2442.3,2441.4,0.55]
[1751431404978,6.715,2442.3,2441.0,6.48033647]
[1751431404979,0.7553,2442.1,2441.1,0.55]
[1751431405354,0.7553,2441.9,2441.1,0.55]
[1751431405555,9.5013,2441.8,2440.9,0.55]
[1751431405756,0.7913,2441.6,2440.3,0.792]
[1751431405997,0.7913,2441.4,2440.4,0.55]
[1751431406193,10.7913,2441.4,2440.4,0.55]
[1751431406670,0.8152,2441.3,2440.3,10.0]
[1751431406998,8.756,2441.2,2440.4,7.03033647]
[1751431407200,0.95712,2441.1,2440.4,7.03033647]
[1751431408001,8.757,2441.1,2440.4,7.03033647]
[1751431408377,0.01,2441.0,2440.4,7.03033647]
[1751431414382,0.2048,2440.9,2440.4,7.23513647]
[1751431418026,0.9927,2440.9,2440.4,7.23513647]
[1751431418229,0.9927,2440.9,2440.4,0.7548]
[1751431422032,0.9927,2440.9,2440.4,0.2048]
[1751431422335,0.7932,2440.5,2440.1,0.2048]
[1751431423112,0.7932,2440.5,2440.2,0.55]
[1751431424543,0.2048,2440.4,2440.0,0.7548]
[1751431426229,0.2048,2440.4,2440.0,0.7748]
[1751431426826,0.2048,2440.4,2440.0,7.25513647]
[1751431428647,0.2048,2440.4,2440.3,0.55]
[1751431442237,0.9804,2440.7,2440.3,0.7548]
[1751431442459,0.9804,2440.7,2440.4,6.48033647]
[1751431443769,0.9804,2440.7,2440.3,0.7548]
[1751431443938,0.2048,2440.5,2440.1,0.7548]
[1751431453388,0.2048,2440.5,2440.1,7.23513647]
[1751431453571,0.2048,2440.5,2440.1,8.03620012]
[1751431463491,0.2048,2440.5,2440.4,0.55]
[1751431465087,0.2048,2440.5,2440.3,6.48033647]
[1751431465088,0.2048,2440.5,2440.2,7.03033647]
[1751431467693,0.2048,2440.5,2440.2,0.55]
[1751431467994,0.8083,2440.4,2440.0,0.02]
[1751431468197,0.8083,2440.1,2440.0,0.02]
[1751431469989,1.0131,2440.1,2440.0,0.02]
[1751431471503,7.6881,2440.1,2440.0,0.02]
[1751431477121,9.7391,2440.1,2440.0,0.02]
[1751431477805,1.0131,2440.1,2440.0,0.02]
[1751431477974,9.7381,2440.1,2440.0,0.02]
[1751431478299,10.70191,2440.1,2440.0,0.02]
[1751431482508,1.78211,2440.1,2440.0,0.02]
[1751431482704,8.45211,2440.1,2440.0,0.02]
[1751431486406,10.50011,2440.1,2440.0,0.02]
[1751431487111,9.69281,2440.1,2440.0,0.02]
[1751431488277,9.69181,2440.1,2440.0,0.02]
[1751431489209,0.97381,2440.1,2440.0,0.02]
[1751431489511,8.718,2440.1,2440.0,0.02]
[1751431493116,0.8223,2440.3,2440.0,0.02]
[1751431493282,2.041,2440.1,2440.0,6.50033647]
[1751431493487,8.715,2440.1,2440.0,6.50033647]
[1751431493710,2.041,2440.1,2440.0,6.50033647]
[1751431494021,8.715,2440.1,2440.0,0.02]
[1751431496398,8.715,2440.1,2440.0,0.791]
[1751431498520,6.67,2440.2,2440.1,0.55]
[1751431499915,6.67,2440.2,2440.0,0.57]
[1751431501489,6.668,2440.2,2440.0,0.57]
[1751431503219,6.668,2440.2,2440.0,7.05033647]
[1751431503389,6.8708,2440.3,2440.0,7.05033647]
[1751431503802,6.8698,2440.3,2440.2,0.55]
[1751431504712,0.2048,2440.3,2440.2,0.55]
[1751431504909,6.8698,2440.3,2440.2,0.55]
[1751431505114,6.8698,2440.3,2440.0,0.57]
[1751431505714,0.2048,2440.3,2440.0,0.57]
[1751431506429,6.8688,2440.3,2440.0,0.57]
[1751431506600,7.6696,2440.3,2440.0,0.57]
[1751431506802,8.64066,2440.3,2440.0,0.57]
[1751431507123,0.2048,2440.2,2440.0,0.02]
[1751431510530,6.8658,2440.2,2440.0,0.02]
[1751431513336,0.2048,2440.2,2440.0,0.02]
[1751431516140,6.656,2440.3,2440.0,0.02]
[1751431516339,1.6685,2440.2,2440.0,0.02]
[1751431518322,6.656,2440.3,2440.0,0.02]
[1751431518522,0.2048,2440.1,2440.0,0.02]
[1751431520025,0.2048,2440.1,2440.0,1.3706]
[1751431524474,0.2048,2440.1,2440.0,0.57]
[1751431530691,0.2048,2440.1,2440.0,0.02]
[1751431542616,0.2048,2440.1,2440.0,0.57]
[1751431549314,2.03,2440.5,2440.0,0.57]
[1751431549607,0.2048,2440.3,2440.2,0.55]
[1751431551517,0.2048,2440.3,2440.2,1.3532]
[1751431551714,0.2048,2440.3,2440.2,0.55]
[1751431554300,6.653,2440.6,2440.2,0.55]
[1751431554506,0.2048,2440.5,2440.2,0.55]
[1751431555131,0.2048,2440.5,2440.3,6.48033647]
[1751431555620,0.2048,2440.5,2440.3,7.25863647]
[1751431556016,0.2048,2440.5,2440.4,0.55]
[1751431562510,0.2048,2440.5,2440.4,1.33086365]
[1751431562717,0.2048,2440.7,2440.4,1.33086365]
[1751431562916,0.2048,2440.7,2440.6,7.03033647]
[1751431568244,0.01,2441.0,2440.6,7.78403647]
[1751431568449,0.01,2441.9,2440.4,0.80086365]
[1751431568450,0.01,2441.9,2441.1,0.55]
[1751431568646,0.214,2441.9,2441.8,6.48033647]
[1751431568939,0.01,2441.9,2441.7,0.55]
[1751431569115,0.7757,2441.9,2441.7,0.55]
[1751431569321,0.204,2441.7,2441.4,0.55]
[1751431569552,0.7757,2441.9,2441.3,7.26063647]
[1751431569553,0.7757,2441.9,2441.6,0.55]
[1751431569834,0.214,2441.9,2441.6,0.55]
[1751431570241,0.01,2441.9,2441.8,0.55]
[1751431570831,0.01,2441.9,2441.8,1.3303]
[1751431571132,0.01,2441.9,2441.8,1.35146365]
[1751431572346,0.01,2441.9,2441.6,0.55]
[1751431572646,0.204,2441.8,2441.7,7.03033647]
[1751431575936,0.204,2441.8,2441.7,0.55]
[1751431576132,0.204,2441.8,2441.5,6.48033647]
[1751431576643,0.204,2441.7,2441.3,6.68513647]
[1751431576845,0.204,2441.6,2441.3,0.74774365]
[1751431577145,0.204,2441.6,2441.4,0.55]
[1751431577957,0.8314,2441.8,2441.2,10.0]
[1751431578115,0.2048,2441.4,2441.1,6.48033647]
[1751431578319,0.9968,2441.4,2441.1,6.48033647]
[1751431578819,0.9968,2441.4,2441.2,0.55]
[1751431579834,0.9968,2441.4,2441.1,0.55]
[1751431580448,0.9968,2441.4,2441.2,6.48033647]
[1751431580623,0.2048,2441.4,2441.3,0.70303365]
[1751431580831,0.2048,2441.4,2441.2,6.48033647]
[1751431581230,0.7856,2441.8,2441.3,0.55]
[1751431581549,0.204,2441.6,2441.5,7.03033647]
[1751431582846,0.204,2441.6,2441.5,0.55]
[1751431583152,0.204,2441.6,2441.3,6.48033647]
[1751431583342,0.7856,2441.8,2441.3,6.48033647]
[1751431583651,0.204,2441.5,2441.1,7.03033647]
[1751431583847,0.95176,2441.8,2441.1,7.03033647]
[1751431584042,0.2048,2441.3,2441.1,7.03033647]
[1751431586022,0.9961,2441.3,2441.1,7.03033647]
[1751431587338,0.7913,2441.3,2440.7,6.48033647]
[1751431587543,0.2048,2441.1,2440.7,7.68513647]
[1751431587745,0.2048,2441.1,2440.8,0.55]
[1751431587939,0.7913,2441.3,2440.8,0.55]
[1751431588157,0.2048,2441.0,2440.8,0.55]
[1751431589346,0.2048,2441.0,2440.8,0.57]
[1751431591156,0.2048,2441.0,2440.9,6.48033647]
[1751431593964,0.2048,2441.0,2440.9,8.50857012]
[1751431594149,0.8287,2441.6,2440.9,8.16337012]
[1751431594150,0.2048,2441.4,2440.9,8.16337012]
[1751431594456,10.0,2441.7,2440.8,0.02]
[1751431594457,0.8287,2441.3,2440.8,0.02]
[1751431594754,0.2048,2441.0,2440.8,0.57]
[1751431595667,0.2048,2441.0,2440.8,0.02]
[1751431595958,0.2048,2440.9,2440.8,0.02]
[1751431611959,1.0364,2440.9,2440.8,0.02]
[1751431616886,0.2048,2440.9,2440.8,0.02]
[1751431626201,1.0336,2440.9,2440.8,0.02]
[1751431626508,1.80286,2440.9,2440.8,0.02]
[1751431627387,48.28319647,2440.9,2440.8,0.02]
[1751431630580,60.52319647,2440.9,2440.8,0.02]
[1751431632001,61.07319647,2440.9,2440.8,0.02]
[1751431632203,61.39809647,2440.9,2440.8,0.02]
[1751431633375,60.98719647,2440.9,2440.8,0.02]
[1751431636819,30.98719647,2440.9,2440.8,0.02]
[1751431637014,60.98719647,2440.9,2440.8,0.02]
[1751431638312,67.64619647,2440.9,2440.8,0.02]
[1751431638711,76.06304599,2440.9,2440.8,0.02]
[1751431638912,47.27423647,2440.5,2440.4,0.02]
[1751431639115,70.11213141,2440.5,2440.4,0.02]
[1751431641730,0.55,2440.4,2440.0,0.02]
[1751431641896,85.57443141,2440.5,2440.0,0.02]
[1751431641897,47.24253647,2440.1,2440.0,0.02]
[1751431642085,54.67979647,2440.1,2440.0,0.02]
[1751431643903,62.57979647,2440.1,2440.0,0.02]
[1751431646118,49.43146,2440.1,2440.0,0.02]
[1751431646298,58.13046,2440.1,2440.0,0.02]
[1751431646825,48.13046,2440.1,2440.0,0.02]
[1751431647420,64.61079647,2440.1,2440.0,0.02]
[1751431653219,34.61079647,2440.1,2440.0,0.02]
[1751431653388,64.61079647,2440.1,2440.0,0.02]
[1751431654104,58.13046,2440.1,2440.0,0.02]
[1751431654312,49.43146,2440.1,2440.0,0.02]
[1751431654504,58.12946,2440.1,2440.0,0.02]
[1751431654906,58.12846,2440.1,2440.0,0.02]
[1751431656021,49.43146,2440.1,2440.0,0.02]
[1751431656228,58.12846,2440.1,2440.0,0.02]
[1751431656409,58.12746,2440.1,2440.0,0.02]
[1751431656615,51.46546,2440.1,2440.0,0.02]
[1751431656827,58.12746,2440.1,2440.0,0.02]
[1751431657807,28.12746,2440.1,2440.0,0.02]
[1751431658006,58.12746,2440.1,2440.0,0.02]
[1751431659839,27.36526,2440.1,2440.0,0.02]
[1751431662506,31.68526,2440.1,2440.0,0.02]
[1751431664545,62.50026,2440.1,2440.0,0.02]
[1751431667146,72.35626,2440.1,2440.0,0.02]
[1751431670549,42.35426,2440.1,2440.0,0.02]
[1751431672237,28.52526,2440.1,2440.0,0.02]
[1751431672442,26.449,2440.1,2440.0,0.02]
[1751431673217,11.889,2440.1,2440.0,0.8099]
[1751431673468,18.549,2440.1,2440.0,0.8099]
[1751431673617,0.01,2440.4,2440.0,0.8099]
[1751431673823,2.033,2440.2,2440.1,7.03033647]
[1751431674151,0.2048,2440.3,2440.2,0.7548]
[1751431674938,6.8648,2440.3,2440.2,0.7548]
[1751431675443,6.8648,2440.3,2440.2,1.3048]
[1751431675649,6.8648,2440.3,2440.2,1.3518]
[1751431676249,6.8658,2440.3,2440.2,1.3518]
[1751431676421,6.8658,2440.3,2440.2,2.20771701]
[1751431678454,0.2048,2440.3,2440.2,2.20771701]
[1751431678655,6.8638,2440.3,2440.2,2.20771701]
[1751431678849,6.8638,2440.3,2440.2,7.83213647]
[1751431680259,0.2048,2440.3,2440.2,7.83213647]
[1751431680425,6.8638,2440.3,2440.2,7.83213647]
[1751431681052,6.8638,2440.3,2440.2,1.3518]
[1751431684937,6.8628,2440.3,2440.2,1.3518]
[1751431685137,6.8628,2440.3,2440.2,2.13701365]
[1751431686971,0.01,2440.4,2440.3,11.3166]
[1751431687257,0.01,2441.2,2440.5,0.55]
[1751431687454,0.01,2441.2,2440.2,7.26555012]
[1751431687455,6.658,2440.8,2440.7,0.55]
[1751431687659,6.658,2440.8,2440.7,1.3166]
[1751431688159,0.01,2441.2,2440.6,0.55]
[1751431688360,0.01,2441.2,2440.8,0.55]
[1751431688658,0.01,2441.2,2441.1,7.03033647]
[1751431688855,0.01,2441.2,2441.1,8.48727012]
[1751431690359,0.01,2441.2,2441.1,2.00693365]
[1751431691126,0.01,2441.2,2441.1,1.45693365]
[1751431695128,0.01,2441.2,2441.1,7.93727012]
[1751431695662,0.01,2441.2,2441.1,1.45693365]
[1751431695868,0.01,2441.2,2440.3,0.55]
[1751431696045,0.01,2441.2,2440.8,11.3166]
[1751431696533,0.01,2441.2,2440.8,1.3166]
[1751431696731,0.01,2441.2,2440.8,0.7666]
[1751431696935,0.01,2441.2,2440.6,0.8148]
[1751431697256,0.2048,2440.8,2440.6,0.8148]
[1751431697430,6.659,2440.7,2440.6,0.8148]
[1751431701060,6.658,2440.7,2440.6,0.8148]
[1751431701459,0.8039,2441.1,2440.6,0.8148]
[1751431701781,6.658,2440.7,2440.6,0.8148]
[1751431701970,6.658,2440.7,2440.6,1.54431365]
[1751431702360,6.657,2440.8,2440.6,1.54431365]
[1751431704581,6.657,2440.8,2440.6,0.8148]
[1751431705852,0.01,2441.2,2440.7,6.48033647]
[1751431706053,0.2048,2440.8,2440.7,6.48033647]
[1751431707880,6.8608,2440.8,2440.7,6.48033647]
[1751431712588,6.8608,2440.8,2440.6,0.8148]
[1751431713383,6.8608,2440.8,2440.5,6.48033647]
[1751431713551,6.8608,2440.8,2440.4,0.02]
[1751431713552,0.2048,2440.5,2440.4,0.02]
[1751431715985,0.0548,2440.5,2440.4,0.02]
[1751431717087,0.01,2441.0,2440.4,7.25163647]
[1751431717275,0.01,2441.0,2440.9,6.48033647]
[1751431717583,6.671,2441.0,2440.9,6.48033647]
[1751431717884,0.01,2441.0,2440.9,8.56600012]
[1751431718084,0.01,2441.0,2440.9,18.56600012]
[1751431727007,0.01,2441.0,2440.9,10.72316365]
[1751431727218,0.01,2441.0,2440.9,16.48033647]
[1751431727390,0.01,2441.0,2440.9,17.78653647]
[1751431730506,0.01,2441.0,2440.9,11.3062]
[1751431730716,0.01,2441.0,2440.9,10.0]
[1751431730915,0.2148,2441.0,2440.9,10.0]
[1751431731081,0.2148,2441.0,2440.4,0.7738]
[1751431731281,0.01,2441.0,2440.4,7.25413647]
[1751431731505,0.01,2441.0,2440.5,10.72541365]
[1751431731817,0.01,2441.0,2440.7,10.0]
[1751431732181,0.7924,2441.0,2440.7,10.0]
[1751431733590,0.7924,2441.0,2440.6,6.48033647]
[1751431740718,2.033,2440.9,2440.6,6.48033647]
[1751431741224,0.2048,2440.6,2440.4,0.02]
[1751431741416,6.656,2440.6,2440.4,0.02]
[1751431742629,6.656,2440.6,2440.5,0.02]
[1751431744294,0.7639,2440.8,2440.5,0.02]
[1751431744526,0.8284,2441.0,2440.5,6.50033647]
[1751431744923,0.2048,2440.6,2440.5,6.50033647]
[1751431745240,0.2048,2440.6,2440.5,7.17833479]
[1751431745893,0.2048,2440.6,2440.5,6.50033647]
[1751431746097,0.2048,2440.6,2440.5,0.02]
[1751431748503,8.8948,2440.6,2440.5,0.02]
[1751431751427,0.2048,2440.6,2440.5,0.02]
[1751431751602,6.8638,2440.6,2440.5,6.50033647]
[1751431752203,0.2048,2440.6,2440.5,6.50033647]
[1751431754742,0.2148,2440.6,2440.5,6.50033647]
[1751431757246,0.2148,2440.6,2440.5,17.23545012]
[1751431757538,0.01,2440.6,2440.5,17.23545012]
[1751431762345,0.01,2440.6,2440.5,7.23545012]
[1751431762525,0.01,2440.6,2440.5,8.01875012]
[1751431768357,0.01,2440.6,2440.5,8.56875012]
[1751431773439,0.01,2440.6,2440.5,7.23545012]
[1751431775051,0.01,2440.6,2440.5,6.50033647]
[1751431778375,0.2148,2440.6,2440.5,6.50033647]
[1751431779175,0.2148,2440.6,2440.5,0.02]
[1751431779379,1.0348,2440.6,2440.5,0.02]
[1751431784079,8.9348,2440.6,2440.5,0.02]
[1751431784282,9.82828,2440.6,2440.5,0.02]
[1751431790996,16.48428,2440.6,2440.5,0.02]
[1751431797810,18.51628,2440.6,2440.5,0.02]
[1751431800306,9.82828,2440.6,2440.5,0.02]
[1751431800472,18.51628,2440.6,2440.5,0.02]
[1751431804414,8.1148,2440.6,2440.5,0.7888]
[1751431804583,0.01,2441.0,2440.7,0.55]
[1751431804784,0.01,2441.0,2440.9,1.3464]
[1751431804989,0.01,2441.4,2441.1,7.27673647]
[1751431806275,0.01,2441.4,2441.1,0.7964]
[1751431806481,0.01,2441.4,2441.1,7.49044312]
[1751431809413,0.01,2441.4,2441.1,8.04044312]
[1751431811822,0.01,2441.4,2441.1,1.56010665]
[1751431812118,0.01,2441.4,2441.1,1.01010665]
[1751431814522,0.2148,2441.4,2441.1,1.01010665]
[1751431814719,0.2148,2441.4,2441.1,0.21370665]
[1751431816495,1.022,2441.4,2441.1,0.21370665]
[1751431817717,0.2148,2441.4,2441.1,0.21370665]
[1751431821695,0.2148,2441.4,2440.9,7.47103647]
[1751431821896,0.2148,2441.2,2440.8,0.8002]
[1751431824717,0.2148,2441.2,2441.0,0.02]
[1751431826625,1.0367,2441.2,2441.0,0.02]
[1751431827031,0.2148,2441.2,2441.0,0.02]
[1751431831846,0.2148,2441.2,2441.1,6.48033647]
[1751431831999,0.01,2441.2,2441.1,7.03033647]
[1751431832335,0.01,2441.2,2441.1,7.84263647]
[1751431832538,0.01,2441.2,2441.1,8.04743647]
[1751431832835,0.01,2441.2,2441.1,8.92718548]
[1751431833409,0.01,2441.2,2441.1,18.92718548]
[1751431835132,0.01,2441.2,2441.1,19.44473361]
[1751431838712,0.01,2441.2,2441.1,18.92718548]
[1751431843729,0.01,2441.4,2441.3,0.7544]
[1751431843928,0.01,2441.4,2441.3,19.12166502]
[1751431844115,0.01,2441.4,2441.3,19.32646502]
[1751431845545,0.01,2441.6,2441.5,0.7827]
[1751431845751,0.01,2441.6,2441.5,7.81303647]
[1751431845948,0.01,2441.6,2441.5,8.01703647]
[1751431846130,0.01,2441.6,2441.5,10.67403297]
[1751431847326,0.01,2441.6,2441.5,9.89133297]
[1751431859269,0.01,2441.6,2441.3,8.36726502]
[1751431859570,0.01,2441.6,2441.5,6.48033647]
[1751431861977,0.01,2441.6,2441.5,7.80693647]
[1751431862270,0.01,2441.6,2441.5,18.01093647]
[1751431862973,0.01,2441.6,2441.5,17.23433647]
[1751431863267,0.01,2441.6,2441.5,19.22243297]
[1751431865573,0.01,2441.6,2441.5,12.1920965]
[1751431867053,0.01,2441.6,2441.5,2.1920965]
[1751431868153,0.01,2441.6,2441.5,8.67243297]
[1751431872380,0.01,2441.6,2441.5,18.67243297]
[1751431872542,0.01,2441.6,2441.5,12.1920965]
[1751431872748,0.01,2441.6,2441.5,10.204]
[1751431874280,0.01,2441.6,2441.5,10.0]
[1751431877486,0.01,2441.6,2441.4,0.2048]
[1751431877645,0.79,2441.6,2441.1,0.55]
[1751431877851,0.994,2441.6,2441.2,0.2048]
[1751431880981,0.79,2441.6,2441.0,16.50033647]
[1751431881186,0.204,2441.5,2441.0,16.70513647]
[1751431881385,0.204,2441.5,2441.1,1.67051365]
[1751431881682,0.204,2441.5,2441.0,16.70513647]
[1751431883684,0.7512,2441.4,2441.0,0.02]
[1751431883981,0.2048,2441.1,2441.0,0.02]
[1751431886571,0.2048,2441.3,2441.0,0.02]
[1751431890772,0.2048,2441.3,2441.1,0.7988]
[1751431890973,0.2048,2441.3,2441.1,1.60419365]
[1751431891189,0.2048,2441.3,2441.1,11.60419365]
[1751431891867,0.7836,2441.6,2441.2,0.55]
[1751431892067,0.7836,2441.6,2441.2,0.7548]
[1751431892068,0.9876,2441.6,2441.2,0.7548]
[1751431894401,0.9876,2441.6,2441.2,0.2048]
[1751431897009,0.214,2441.6,2441.2,0.2048]
[1751431897315,0.214,2441.6,2441.2,0.95719365]
[1751431897513,0.214,2441.6,2441.2,10.2048]
[1751431898709,0.214,2441.6,2441.2,0.2048]
[1751431898914,1.0096,2441.6,2441.2,0.2048]
[1751431903515,1.0096,2441.6,2441.2,10.2048]
[1751431903516,0.214,2441.6,2441.2,10.2048]
[1751431913720,0.214,2441.6,2441.3,7.03033647]
[1751431913901,0.214,2441.6,2441.4,11.72351365]
[1751431914418,0.204,2441.5,2441.1,1.0236]
[1751431915504,0.204,2441.5,2441.1,7.50393647]
[1751431916098,0.204,2441.5,2441.2,1.3461]
[1751431916304,0.01,2441.6,2441.4,10.0]
[1751431916813,0.01,2441.6,2441.5,0.7642]
[1751431916995,0.01,2441.6,2441.5,12.50913365]
[1751431917521,0.01,2441.6,2441.5,19.53947012]
[1751431917720,0.01,2441.6,2441.5,19.74347012]
[1751431931224,0.01,2441.6,2441.5,26.39547012]
[1751431933823,0.01,2441.6,2441.5,31.14547012]
[1751431935517,0.01,2442.2,2441.5,31.14547012]
[1751431935518,0.01,2442.2,2441.8,0.55]
[1751431935723,0.01,2442.2,2442.1,17.81663647]
[1751431935945,0.01,2442.2,2442.1,28.11950012]
[1751431936147,0.01,2442.2,2442.1,13.65086365]
[1751431936346,0.01,2442.2,2442.1,10.0]
[1751431936726,0.01,2442.2,2442.1,11.3832]
[1751431938223,0.01,2442.2,2442.1,10.55]
[1751431938544,0.01,2442.2,2442.1,11.3832]
[1751431946254,0.01,2442.2,2442.1,11.5872]
[1751431946444,0.01,2442.2,2442.1,14.05905365]
[1751431946644,0.01,2442.2,2442.1,20.71105365]
[1751431947652,0.01,2442.2,2442.1,14.05905365]
[1751431947858,0.01,2442.2,2442.1,13.22585365]
[1751431953033,0.01,2442.2,2442.1,12.47185365]
[1751431953229,0.01,2442.2,2442.1,10.0]
[1751431960460,0.8243,2442.2,2442.0,0.204]
[1751431963941,0.01,2442.2,2442.0,0.204]
[1751431964166,0.01,2442.2,2442.1,10.0]
[1751431965165,0.01,2442.2,2442.0,0.204]
[1751431965468,0.01,2442.2,2442.0,10.204]
[1751431967274,0.7844,2442.1,2441.9,0.02]
[1751431967573,0.9884,2442.1,2441.9,0.02]
[1751431977377,0.204,2442.0,2441.9,0.02]
[1751431978453,0.2251879,2442.5,2442.1,0.8075]
[1751431978677,0.8325,2443.1,2442.5,10.55]
[1751431980354,0.8325,2443.1,2442.5,0.55]
[1751431980881,0.8325,2443.1,2442.5,10.55]
[1751431983083,0.8325,2443.1,2442.5,0.55]
[1751431983285,0.8325,2443.1,2442.4,0.8075]
[1751431983590,0.8325,2443.1,2442.4,2.056825]
[1751431984084,0.8325,2443.1,2442.5,0.55]
[1751431986691,0.01,2443.2,2442.5,0.55]
[1751431986993,0.01,2443.1,2442.5,0.55]
[1751431988495,0.204,2443.0,2442.6,0.204]
[1751431988698,0.204,2443.0,2442.6,0.4850825]
[1751431993014,0.988,2443.0,2442.6,0.4850825]
[1751431993179,0.988,2443.0,2442.6,0.204]
[1751432003308,7.46833647,2443.0,2442.6,0.204]
[1751432004008,0.988,2443.0,2442.6,0.204]
[1751432005316,0.204,2443.0,2442.7,0.8181]
[1751432005516,0.204,2443.0,2442.6,0.204]
[1751432011215,0.204,2442.7,2442.5,0.02]
[1751432011420,0.8019,2442.9,2442.5,0.02]
[1751432011715,0.204,2442.6,2442.5,0.02]
[1751432020735,0.214,2442.6,2442.5,0.02]
[1751432023135,1.0301,2442.6,2442.5,0.02]
[1751432023364,0.214,2442.6,2442.5,1.3495]
[1751432023520,0.01,2443.1,2442.7,0.7795]
[1751432023731,0.01,2443.1,2442.9,0.55]
[1751432023912,0.01,2443.1,2443.0,0.7795]
[1751432024748,0.01,2443.1,2443.0,10.7795]
[1751432025112,0.01,2443.1,2443.0,10.6795]
[1751432025314,0.01,2443.1,2443.0,12.94548365]
[1751432026413,0.01,2443.1,2443.0,19.42582012]
[1751432028547,0.01,2443.1,2443.0,12.94548365]
[1751432032958,0.01,2443.1,2443.0,2.39548365]
[1751432033253,0.01,2443.1,2443.0,0.6795]
[1751432033424,0.01,2443.1,2442.6,0.781]
[1751432033626,0.01,2443.1,2442.7,0.204]
[1751432033825,0.01,2443.1,2443.0,0.02]
[1751432043267,0.793,2443.1,2443.0,0.02]
[1751432043471,0.997,2443.1,2443.0,0.02]
[1751432043767,0.214,2443.1,2443.0,0.02]
[1751432051670,1.02,2443.1,2443.0,0.02]
[1751432056344,1.02,2443.1,2443.0,6.50033647]
[1751432056345,0.214,2443.1,2443.0,6.50033647]
[1751432056653,0.01,2443.1,2443.0,0.67003365]
[1751432057160,0.01,2443.1,2443.0,0.02]